Workbook

Sheet 总表
A1: 附件5
A2: 全区棚户区改造专项债券使用进展情况表
A4: 截至2019年6月31日 | O4: 单位：万元
A5: 城市 | B5: 债券资金覆盖棚户区改造套数 | G5: 债券资金总额 | J5: 第一期债券资金 | M5: 第二期债券资金
C6: 其中2018年及以前任务套数 | D6: 2019年国家任务 | E6: 2019年储备任务 | F6: 2019年新增任务 | G6: 发行总额 | H6: 资金使用额 | I6: 使用率 | J6: 发行额度 | K6: 资金使用额 | L6: 使用率 | M6: 发行额度 | N6: 资金使用额度 | O6: 使用率
A7: 合计 | B7: =SUM(B8:B20) -> 189300 | C7: 74741 | D7: 74285 | E7: 8539 | F7: 31735 | G7: 2000000 | H7: 558253 | I7: =H7/G7 -> 27.91% | J7: =SUM(J8:J20) -> 500000 | K7: 388848 | L7: =K7/J7 -> 77.77% | M7: 1500000 | N7: 169405 | O7: =N7/M7 -> 11.29%
A8: 南宁市 | B8: =C8+D8+E8+F8 -> 18202 | C8: 5442 | D8: 4381 | E8: 429 | F8: 7950 | G8: 282000 | H8: =K8+N8 -> 35164 | I8: 12.47% | J8: 19000 | K8: 14164 | L8: 74.55% | M8: 263000 | N8: 21000 | O8: 7.98%
A9: 柳州市 | B9: 6455 | C9: 3614 | D9: 1556 | E9: 0 | F9: 1285 | G9: =J9+M9 -> 59500 | H9: 24500 | I9: 41.18% | J9: 27500 | K9: 24500 | L9: 89.09% | M9: 32000 | N9: 0 | O9: 0.00%
A10: 桂林市 | B10: 9559 | C10: 4598 | D10: 2127 | E10: 0 | F10: 2834 | G10: 129000 | H10: 31292 | I10: 24.26% | J10: 12600 | K10: 7157 | L10: 56.80% | M10: 116400 | N10: 24135 | O10: 20.73%
A11: 梧州市 | B11: 17352 | C11: 9101 | D11: 2694 | E11: 303 | F11: 5254 | G11: 228000 | H11: 89100 | I11: 39.08% | J11: 100000 | K11: 89100 | L11: =K11/J11 -> 89.10% | M11: 128000 | N11: 0 | O11: =N11/M11 -> 0.00%
A12: 防城港市 | B12: =C12+D12+E12+F12 -> 870 | C12: 870 | D12: 0 | E12: 0 | F12: 0 | G12: 11200 | H12: 0 | I12: 0.00% | J12: 0 | K12: 0 | L12: 0.00% | M12: 11200 | N12: 0 | O12: 0.00%
A13: 钦州市 | B13: 8422 | C13: 2540 | D13: 3796 | E13: 1819 | F13: 267 | G13: 92000 | H13: 2648 | I13: 2.88% | J13: 0 | K13: 0 | L13: 0.00% | M13: 92000 | N13: 2648 | O13: 2.88%
A14: 玉林市 | B14: 18878 | C14: 8719 | D14: 6587 | E14: 0 | F14: 3572 | G14: 182400 | H14: 63068 | I14: 34.58% | J14: 65400 | K14: 39351 | L14: =K14/J14 -> 60.17% | M14: 117000 | N14: 23718 | O14: 20.27%
A15: 贵港市 | B15: 17582 | C15: 13507 | D15: 2223 | E15: 0 | F15: 1852 | G15: 99000 | H15: 16533 | I15: 16.70% | J15: 13000 | K15: 7412 | L15: 57.00% | M15: 86000 | N15: 9121 | O15: 10.60%
A16: 百色市 | B16: 26910 | C16: 1419 | D16: 25099 | E16: 0 | F16: 392 | G16: 319300 | H16: 82941 | I16: 25.98% | J16: 87600 | K16: 53999 | L16: 61.64% | M16: 231700 | N16: 28942 | O16: 12.49%
A17: 河池市 | B17: 10270 | C17: 7828 | D17: 1527 | E17: 0 | F17: 915 | G17: 81700 | H17: =K17+N17 -> 26340 | I17: 32.24% | J17: 29500 | K17: 20824 | L17: 70.59% | M17: 52200 | N17: 5516 | O17: 10.57%
A18: 贺州市 | B18: 26398 | C18: 5776 | D18: 9646 | E18: 3642 | F18: 7334 | G18: 178600 | H18: 36057 | I18: 20.19% | J18: 18000 | K18: 14787 | L18: 82.15% | M18: 160600 | N18: 21270 | O18: 13.24%
A19: 来宾市 | B19: 9403 | C19: 4805 | D19: 4598 | E19: 0 | F19: 0 | G19: =J19+M19 -> 85900 | H19: 17154 | I19: =H19/G19 -> 19.97% | J19: 27000 | K19: 17154 | L19: 63.53% | M19: 58900 | N19: 0 | O19: 0.00%
A20: 崇左市 | B20: 18999 | C20: 6522 | D20: 10051 | E20: 2346 | F20: 80 | G20: 251400 | H20: 133456 | I20: 53.09% | J20: 100400 | K20: 100400 | L20: 100.00% | M20: 151000 | N20: 33056 | O20: 21.89%
